bitfinex/quotes_BTCUSD_20250703
["timestamp","ask_amount","ask_price","bid_price","bid_amount"]
[1751528724033,7.51411084,109520.0,109510.0,2.54175388]
[1751528725606,7.52921084,109520.0,109510.0,2.54175388]
[1751528725817,7.52921084,109520.0,109510.0,2.52460651]
[1751528727276,7.51411084,109520.0,109510.0,2.52460651]
[1751528727479,7.51411084,109520.0,109510.0,2.54060651]
[1751528728253,7.60554777,109520.0,109510.0,2.54060651]
[1751528730796,2.60554777,109520.0,109510.0,2.54060651]
[1751528731075,7.51411084,109520.0,109510.0,2.54060651]
[1751528737344,7.51411084,109520.0,109510.0,2.55775434]
[1751528739034,7.47765177,109520.0,109510.0,2.55775434]
[1751528739790,7.47765177,109520.0,109510.0,2.55775428]
[1751528742860,7.47765177,109520.0,109510.0,2.55775397]
[1751528743065,7.5326725,109520.0,109510.0,2.55775397]
[1751528743658,7.56916449,109520.0,109510.0,2.55775397]
[1751528743858,7.54160176,109520.0,109510.0,2.55775397]
[1751528747742,2.54160176,109520.0,109510.0,2.55775397]
[1751528747943,7.54160176,109520.0,109510.0,2.55775397]
[1751528748755,7.54160176,109520.0,109510.0,2.55775385]
[1751528749974,7.50514269,109520.0,109510.0,2.55775385]
[1751528752162,7.59393184,109520.0,109510.0,2.55775385]
[1751528752635,7.59393184,109520.0,109510.0,2.55775374]
[1751528754943,7.59393184,109520.0,109510.0,2.55775369]
[1751528758275,6.60299667,109520.0,109510.0,2.55775369]
[1751528758473,7.50514269,109520.0,109510.0,2.55775369]
[1751528763173,7.50514269,109520.0,109510.0,2.54175369]
[1751528763462,7.52134269,109520.0,109510.0,2.52460651]
[1751528763973,7.50514269,109520.0,109510.0,2.52460651]
[1751528764112,7.50514269,109520.0,109510.0,2.54010651]
[1751528765934,7.50514269,109520.0,109510.0,2.55725356]
[1751528766377,7.52248713,109520.0,109510.0,2.54175356]
[1751528766661,7.5589462,109520.0,109510.0,2.54175356]
[1751528766866,7.92740209,109520.0,109510.0,2.52460651]
[1751528767070,7.95464307,109520.0,109510.0,2.52460651]
[1751528767298,8.05877375,109520.0,109510.0,2.52460651]
[1751528767509,8.0834932,109520.0,109510.0,2.52460651]
[1751528767719,8.09703413,109520.0,109510.0,2.1067017]
[1751528767931,8.07890236,109520.0,109510.0,2.05426411]
[1751528771157,6.83003634,109520.0,109510.0,2.05426411]
[1751528771332,6.65269684,109520.0,109510.0,2.08596411]
[1751528771541,6.48151769,109520.0,109510.0,2.08596411]
[1751528771739,7.00723769,109520.0,109510.0,2.08596411]
[1751528772179,6.97990269,109520.0,109510.0,2.08596411]
[1751528772384,7.07133962,109520.0,109510.0,2.08596411]
[1751528772814,6.42056735,109520.0,109510.0,2.08596411]
[1751528773165,6.65172735,109520.0,109510.0,2.08596411]
[1751528774182,1.65172735,109520.0,109510.0,2.08596411]
[1751528775319,1.62395346,109520.0,109510.0,2.08596411]
[1751528776093,1.65143225,109520.0,109510.0,2.08596411]
[1751528780155,1.62395346,109520.0,109510.0,2.08596411]
[1751528784030,1.62395346,109520.0,109510.0,2.08616411]
[1751528786269,1.43823346,109520.0,109510.0,2.08616411]
[1751528786474,1.43819346,109520.0,109510.0,2.08616411]
[1751528786832,1.62387346,109520.0,109510.0,2.08616411]
[1751528787251,1.43819346,109520.0,109510.0,2.08616411]
[1751528787448,1.62387346,109520.0,109510.0,2.08616411]
[1751528791350,1.02244278,109520.0,109510.0,2.08616411]
[1751528791667,1.62387346,109520.0,109510.0,2.08616411]
[1751528808438,1.02244278,109520.0,109510.0,2.08616411]
[1751528808666,1.62387346,109520.0,109510.0,2.08616411]
[1751528817574,1.02244278,109520.0,109510.0,2.08616411]
[1751528817774,1.62387346,109520.0,109510.0,2.08616411]
[1751528822805,1.62387346,109520.0,109510.0,2.07096411]
[1751528827514,1.57847346,109520.0,109510.0,2.07096411]
[1751528827722,1.62371346,109520.0,109510.0,2.08616411]
[1751528837294,1.39279346,109520.0,109510.0,2.08616411]
[1751528837503,1.62371346,109520.0,109510.0,2.08616411]
[1751528837739,0.79028223,109520.0,109510.0,2.08616411]
[1751528837981,1.16754785,109520.0,109510.0,2.08616411]
[1751528838394,0.52683251,109520.0,109510.0,2.08616411]
[1751528838603,0.82554785,109520.0,109510.0,2.08516411]
[1751528838810,0.82454785,109520.0,109510.0,2.08416411]
[1751528839028,0.82554785,109520.0,109510.0,2.08616411]
[1751528839317,0.1204678,109520.0,109510.0,2.08616411]
[1751528839476,0.66119389,109520.0,109510.0,2.08616411]
[1751528839712,0.84380893,109520.0,109510.0,2.08616411]
[1751528840328,0.54309359,109520.0,109510.0,2.08616411]
[1751528840533,0.84380893,109520.0,109510.0,2.08616411]
[1751528842601,0.54309359,109520.0,109510.0,2.08616411]
[1751528842809,0.84380893,109520.0,109510.0,2.08616411]
[1751528843752,0.8346786,109520.0,109510.0,2.08616411]
[1751528843952,1.13539394,109520.0,109510.0,2.08616411]
[1751528849280,0.53396326,109520.0,109510.0,2.08616411]
[1751528849488,1.13539394,109520.0,109510.0,2.08616411]
[1751528850102,1.13539394,109520.0,109510.0,2.07096411]
[1751528851354,0.90451394,109520.0,109510.0,2.07096411]
[1751528851556,0.53392326,109520.0,109510.0,2.07096411]
[1751528851761,1.13535394,109520.0,109510.0,2.07096411]
[1751528852593,1.12622336,109520.0,109510.0,2.07096411]
[1751528855434,0.52479268,109520.0,109510.0,2.07096411]
[1751528855644,1.12622336,109520.0,109510.0,2.07096411]
[1751528857260,1.11709261,109520.0,109510.0,2.07096411]
[1751528867475,0.51566193,109520.0,109510.0,2.07096411]
[1751528867677,1.11709261,109520.0,109510.0,2.07096411]
[1751528868683,0.51566193,109520.0,109510.0,2.07096411]
[1751528868937,1.11709261,109520.0,109510.0,2.07096411]
[1751528870686,1.12622327,109520.0,109510.0,2.07096411]
[1751528875115,0.52479259,109520.0,109510.0,2.07096411]
[1751528875248,1.12622327,109520.0,109510.0,2.07096411]
[1751528875452,0.82550793,109520.0,109510.0,2.07096411]
[1751528877154,1.12622327,109520.0,109510.0,2.07096411]
[1751528880572,1.11709261,109520.0,109510.0,2.07096411]
[1751528899836,1.12622327,109520.0,109510.0,2.07096411]
[1751528900764,1.13535368,109520.0,109510.0,2.07096411]
[1751528903071,1.59759061,109520.0,109510.0,2.05446411]
[1751528903291,7.22982885,109520.0,109510.0,2.05446411]
[1751528903504,7.28279222,109520.0,109510.0,1.6485659]
[1751528903729,7.00941233,109520.0,109510.0,1.6485659]
[1751528903944,6.95823284,109520.0,109510.0,1.6485659]
[1751528904822,7.26094818,109520.0,109510.0,1.6495659]
[1751528905051,7.25994818,109520.0,109510.0,1.6475659]
[1751528905263,7.25794818,109520.0,109510.0,1.6465659]
[1751528905470,7.25894818,109520.0,109510.0,1.6475659]
[1751528905683,7.26094818,109520.0,109510.0,1.6475659]
[1751528906122,6.96323284,109520.0,109510.0,1.6485659]
[1751528906377,7.26394818,109520.0,109510.0,1.6485659]
[1751528907419,7.23661273,109520.0,109510.0,1.6485659]
[1751528919091,7.26391145,109520.0,109510.0,1.6485659]
[1751528924954,7.23645045,109520.0,109510.0,1.6485659]
[1751528927693,7.26391145,109520.0,109510.0,1.6485659]
[1751528928562,7.30030974,109520.0,109510.0,1.6485659]
[1751528931531,7.27301102,109520.0,109510.0,1.6485659]
[1751528931727,2.27301102,109520.0,109510.0,1.6485659]
[1751528931931,7.27301102,109520.0,109510.0,1.6485659]
[1751528932521,7.32760846,109520.0,109510.0,1.6485659]
[1751528933527,7.29121017,109520.0,109510.0,1.6485659]
[1751528935662,7.89264085,109520.0,109510.0,1.6485659]
[1751528942937,7.89112176,109520.0,109510.0,1.13737186]
[1751528943141,7.94094701,109520.0,109510.0,1.0275567]
[1751528943640,7.91544464,109520.0,109510.0,1.0275567]
[1751528943842,7.91544464,109520.0,109510.0,0.96407385]
[1751528944038,7.91544464,109520.0,109510.0,0.95355385]
[1751528944241,8.13496464,109520.0,109510.0,0.90782385]
[1751528948973,8.11926464,109520.0,109510.0,0.90782385]
[1751528949373,8.11925592,109520.0,109510.0,0.90782385]
[1751528952886,8.12839839,109520.0,109510.0,0.90782385]
[1751528953924,8.18299583,109520.0,109510.0,0.90782385]
[1751528954135,8.14646085,109520.0,109510.0,0.90782385]
[1751528955795,8.14646085,109520.0,109510.0,0.90580839]
[1751528956818,3.14646085,109520.0,109510.0,0.90580839]
[1751528957022,8.14646085,109520.0,109510.0,0.90580839]
[1751528957888,8.05494392,109520.0,109510.0,0.90580839]
[1751528958551,6.25065188,109520.0,109510.0,0.90580839]
[1751528958777,8.05494392,109520.0,109510.0,0.90580839]
[1751528961553,8.05299162,109520.0,109510.0,0.90580839]
[1751528964925,6.8552656,109520.0,109510.0,0.92170839]
[1751528965129,6.8552656,109520.0,109510.0,0.93690839]
[1751528965130,7.22116475,109520.0,109510.0,0.93690839]
[1751528965276,7.257689,109520.0,109510.0,0.93690839]
[1751528965480,7.27222985,109520.0,109510.0,0.93690839]
[1751528965679,7.21763241,109520.0,109510.0,0.93690839]
[1751528967293,6.31548639,109520.0,109510.0,0.93690839]
[1751528967505,7.21763241,109520.0,109510.0,0.93690839]
[1751528968263,7.24501795,109520.0,109510.0,0.93690839]
[1751528969658,2.24501795,109520.0,109510.0,0.93690839]
[1751528969857,7.24501795,109520.0,109510.0,0.93690839]
[1751528970059,7.31712276,109520.0,109510.0,0.93690839]
[1751528971343,7.24501795,109520.0,109510.0,0.93690839]
[1751528973739,7.24485427,109520.0,109510.0,0.93690839]
[1751528989610,7.24485427,109520.0,109510.0,0.92170839]
[1751528991824,2.24485427,109520.0,109510.0,0.92170839]
[1751528992029,7.24485427,109520.0,109510.0,0.92170839]
[1751528994156,7.21746873,109520.0,109510.0,0.92170839]
[1751528998036,7.21551643,109520.0,109510.0,0.92170839]
[1751529006370,7.17899218,109520.0,109510.0,0.92170839]
[1751529006621,7.21553646,109520.0,109510.0,0.92170839]
[1751529008085,2.21553646,109520.0,109510.0,0.92170839]
[1751529008240,7.21553646,109520.0,109510.0,0.92170839]
[1751529011568,7.30697339,109520.0,109510.0,0.92170839]
[1751529011936,7.21553646,109520.0,109510.0,0.92170839]
[1751529018490,7.18653817,109520.0,109510.0,0.92170839]
[1751529020300,7.18693817,109520.0,109510.0,0.92170839]
[1751529020917,2.18693817,109520.0,109510.0,0.92170839]
[1751529021135,7.18693817,109520.0,109510.0,0.92170839]
[1751529022003,7.19593564,109520.0,109510.0,0.92170839]
[1751529024586,7.16847464,109520.0,109510.0,0.92170839]
[1751529028403,7.17761056,109520.0,109510.0,0.92170839]
[1751529031970,2.17761056,109520.0,109510.0,0.92170839]
[1751529032171,7.17761056,109520.0,109510.0,0.92170839]
[1751529034830,7.17565826,109520.0,109510.0,0.92170839]
[1751529047706,6.94521826,109520.0,109510.0,0.92170839]
[1751529047961,1.6353692,109520.0,109510.0,0.95385636]
[1751529048162,1.8655692,109520.0,109510.0,0.95385564]
[1751529049006,1.8625692,109520.0,109510.0,0.95285564]
[1751529049416,1.8635692,109520.0,109510.0,0.95385564]
[1751529050055,1.8605692,109520.0,109510.0,0.95285564]
[1751529050507,1.83515864,109520.0,109510.0,0.95385564]
[1751529051178,1.83515864,109520.0,109510.0,0.93670839]
[1751529052722,1.83515864,109520.0,109510.0,0.92170839]
[1751529053154,1.83515864,109520.0,109510.0,0.93720839]
[1751529054488,1.83515864,109520.0,109510.0,0.92720839]
[1751529057427,1.83515864,109520.0,109510.0,0.91170839]
[1751529057850,1.83515864,109520.0,109510.0,0.92810839]
[1751529060883,1.83515864,109520.0,109510.0,0.91170839]
[1751529061201,1.83515864,109520.0,109510.0,0.92800839]
[1751529061615,1.83515864,109520.0,109510.0,0.91170839]
[1751529062268,1.83515864,109520.0,109510.0,0.92760839]
[1751529064708,1.83515864,109520.0,109510.0,0.91170839]
[1751529066187,1.83515864,109520.0,109510.0,0.92750839]
[1751529067455,1.83515864,109520.0,109510.0,0.91170839]
[1751529068518,1.83515864,109520.0,109510.0,0.92883771]
[1751529074892,1.8625692,109520.0,109510.0,0.92883771]
[1751529076965,1.8625692,109520.0,109510.0,0.91170839]
[1751529077174,1.8625692,109520.0,109510.0,0.92884892]
[1751529081606,1.8625692,109520.0,109510.0,0.94534892]
[1751529082082,1.8625692,109520.0,109510.0,0.92884892]
[1751529082294,1.8625692,109520.0,109510.0,0.94484892]
[1751529082781,1.8625692,109520.0,109510.0,0.92884892]
[1751529087800,1.8625292,109520.0,109510.0,0.92884892]
[1751529088457,1.26109852,109520.0,109510.0,0.94394892]
[1751529088672,1.8625292,109520.0,109510.0,0.94394892]
[1751529089776,1.8625292,109520.0,109510.0,0.92884892]
[1751529092405,1.6430092,109520.0,109510.0,0.92884892]
[1751529093999,1.6430092,109520.0,109510.0,0.94404892]
[1751529095788,0.79687767,109520.0,109510.0,0.94404892]
[1751529096004,0.80963628,109520.0,109510.0,0.91889365]
[1751529096213,0.80289049,109520.0,109510.0,0.91889365]
[1751529096440,0.98550553,109520.0,109510.0,0.91889365]
[1751529096651,0.82115182,109520.0,109510.0,0.91889365]
[1751529096857,0.81202107,109520.0,109510.0,0.91889365]
[1751529097037,0.80289049,109520.0,109510.0,0.91888576]
[1751529097258,0.4930444,109520.0,109510.0,0.91888576]
[1751529097480,0.4930444,109520.0,109510.0,1.2196011]
[1751529097481,0.0034,109520.0,109510.0,1.2196011]
[1751529097695,0.0034,109520.0,109510.0,1.4046011]
[1751529098349,0.0034,109520.0,109510.0,1.4319978]
[1751529098563,0.0014,109520.0,109510.0,1.44750502]
[1751529098715,0.0004,109520.0,109510.0,1.44650502]
[1751529099154,0.0014,109520.0,109510.0,1.4329978]
[1751529099743,0.0014,109520.0,109510.0,1.4339978]
[1751529099955,0.30211534,109520.0,109510.0,0.94828246]
[1751529100182,0.63935167,109520.0,109510.0,0.92088576]
[1751529100383,0.51450567,109520.0,109510.0,0.92088576]
[1751529100587,0.50537542,109520.0,109510.0,0.92088576]
[1751529100796,0.51450575,109520.0,109510.0,0.92088576]
[1751529101004,0.82435159,109520.0,109510.0,0.92088576]
[1751529101240,0.8243515,109520.0,109510.0,0.92088576]
[1751529101681,0.833482,109520.0,109510.0,0.92088576]
[1751529101888,0.53276666,109520.0,109510.0,0.92088576]
[1751529102717,0.52363616,109520.0,109510.0,0.92088576]
[1751529102926,0.8243515,109520.0,109510.0,0.92088576]
[1751529103140,0.8243515,109520.0,109510.0,0.92085037]
[1751529103587,0.81522109,109520.0,109510.0,0.92085037]
[1751529103826,0.51450575,109520.0,109510.0,0.92085037]
[1751529104709,0.52363633,109520.0,109510.0,0.92085037]
[1751529105149,0.22292091,109520.0,109510.0,0.92085037]
[1751529105364,0.52363625,109520.0,109510.0,0.92085037]
[1751529105798,0.51450575,109520.0,109510.0,0.92085037]
[1751529107078,0.52363616,109520.0,109510.0,0.92085037]
[1751529108418,0.51450575,109520.0,109510.0,0.92085037]
[1751529108837,0.52363633,109520.0,109510.0,0.92084225]
[1751529109028,0.52363616,109520.0,109510.0,0.92084225]
[1751529109731,0.51450567,109520.0,109510.0,0.92084225]
[1751529110602,0.21379033,109520.0,109510.0,0.92084225]
[1751529110811,0.51450567,109520.0,109510.0,0.92084225]
[1751529111900,0.52363608,109520.0,109510.0,0.92084225]
[1751529112124,0.82435142,109520.0,109510.0,0.92084225]
[1751529112362,1.10753464,109520.0,109510.0,0.90564225]
[1751529112576,1.09840456,109520.0,109510.0,0.90564225]
[1751529112819,0.90665877,109520.0,109510.0,0.90564225]
[1751529113065,0.89752827,109520.0,109510.0,0.90564225]
[1751529113272,0.90665885,109520.0,109510.0,0.90564225]
[1751529113483,1.0892743,109520.0,109510.0,0.90564225]
[1751529115427,1.07101331,109520.0,109510.0,0.90564225]
[1751529118451,1.08741331,109520.0,109510.0,0.88974225]
[1751529118879,1.07101331,109520.0,109510.0,0.88974225]
[1751529119096,1.07101331,109520.0,109510.0,0.90514225]
[1751529119505,0.46958263,109520.0,109510.0,0.90514225]
[1751529119627,1.07101331,109520.0,109510.0,0.90514225]
[1751529120050,1.07101331,109520.0,109510.0,0.88974225]
[1751529120460,1.08731331,109520.0,109510.0,0.88974225]
[1751529120907,1.8925695,109520.0,109510.0,0.88974225]
[1751529121326,1.59185416,109520.0,109510.0,0.88974225]
[1751529121528,1.59185416,109520.0,109510.0,0.88976223]
[1751529122583,1.66595488,109520.0,109510.0,0.88976223]
[1751529122994,1.96667022,109520.0,109510.0,0.88976223]
[1751529123197,1.8925695,109520.0,109510.0,0.88976223]
[1751529123430,1.59185416,109520.0,109510.0,0.88976223]
[1751529128858,1.59185416,109520.0,109510.0,0.87265312]
[1751529137119,0.99042348,109520.0,109510.0,0.87265312]
[1751529137331,1.59185416,109520.0,109510.0,0.87265312]
[1751529138478,1.63693416,109520.0,109510.0,0.87265312]
[1751529145511,1.9376495,109520.0,109510.0,0.87265312]
[1751529147332,1.9213495,109520.0,109510.0,0.88865312]
[1751529147991,1.62063416,109520.0,109510.0,0.88865312]
[1751529150626,1.39055416,109520.0,109510.0,0.88865312]
[1751529150832,1.62063416,109520.0,109510.0,0.88865312]
[1751529152309,1.22601331,109520.0,109510.0,0.90375312]
[1751529152652,1.18272913,109520.0,109510.0,0.90375312]
[1751529152876,0.99098334,109520.0,109510.0,0.90375312]
[1751529153097,1.000114,109520.0,109510.0,0.90375312]
[1751529153795,1.19185979,109520.0,109510.0,0.90375312]
[1751529154001,1.18272963,109520.0,109510.0,0.90375312]
[1751529154426,0.66950691,109520.0,109510.0,0.90375312]
[1751529154734,1.08216204,109520.0,109510.0,0.90375312]
[1751529154939,1.08216204,109520.0,109510.0,0.93118136]
[1751529154940,1.38287738,109520.0,109510.0,0.93118136]
[1751529155366,1.38287738,109520.0,109510.0,0.90375312]
[1751529156437,1.37374697,109520.0,109510.0,0.90375312]
[1751529159069,1.34628374,109520.0,109510.0,0.90375312]
[1751529159273,1.03234697,109520.0,109510.0,0.90375312]
[1751529161198,1.07321647,109520.0,109510.0,0.90375312]
[1751529163616,1.06408572,109520.0,109510.0,0.90375312]
[1751529165566,0.83404572,109520.0,109510.0,0.90375312]
[1751529165763,1.06408572,109520.0,109510.0,0.90375312]
[1751529169766,1.06448572,109520.0,109510.0,0.90375312]
[1751529174883,0.46305504,109520.0,109510.0,0.90375312]
[1751529175089,1.06448572,109520.0,109510.0,0.90375312]
[1751529177114,0.87952572,109520.0,109510.0,0.90375312]
[1751529177330,1.06444572,109520.0,109510.0,0.90375312]
[1751529184301,1.06444572,109520.0,109510.0,0.91608136]
[1751529188489,1.06444572,109520.0,109510.0,0.88865312]
[1751529188701,1.06444572,109520.0,109510.0,0.91607204]
[1751529190549,1.06444572,109520.0,109510.0,0.93267204]
[1751529193112,1.06444572,109520.0,109510.0,0.91607204]
[1751529199592,1.06444572,109520.0,109510.0,0.88865312]
[1751529199806,0.46301504,109520.0,109510.0,0.88865312]
[1751529200006,1.06444572,109520.0,109510.0,0.88865312]
[1751529203767,1.06444572,109520.0,109510.0,0.90395312]
[1751529208784,1.07357638,109520.0,109510.0,0.90395312]
[1751529209290,0.4721457,109520.0,109510.0,0.90395312]
[1751529209578,1.07357638,109520.0,109510.0,0.90395312]
[1751529210494,1.06752712,109520.0,109510.0,0.90395312]
[1751529211068,0.46609644,109520.0,109510.0,0.90395312]
[1751529211509,1.06752712,109520.0,109510.0,0.90395312]
[1751529214725,1.06752712,109520.0,109510.0,0.88865312]
[1751529220613,1.08362712,109520.0,109510.0,0.87265312]
[1751529221683,1.09275753,109520.0,109510.0,0.87265312]
[1751529221910,1.10188828,109520.0,109510.0,0.87265312]
[1751529224927,0.7404025,109520.0,109510.0,0.87265312]
[1751529225161,0.9252425,109520.0,109510.0,0.87265312]
[1751529225376,0.32381182,109520.0,109510.0,0.87265312]
[1751529225599,0.9091425,109520.0,109510.0,0.87265312]
[1751529226701,0.9091425,109520.0,109510.0,0.88825312]
[1751529227544,0.9091425,109520.0,109510.0,0.87265312]
[1751529228184,1.09175754,109520.0,109510.0,0.87265312]
[1751529228647,1.10805754,109520.0,109510.0,0.87265312]
[1751529229950,1.09175754,109520.0,109510.0,0.87265312]
[1751529231035,1.10805754,109520.0,109510.0,0.87265312]
[1751529231902,1.09892713,109520.0,109510.0,0.87265312]
[1751529232570,1.08979647,109520.0,109510.0,0.87265312]
[1751529234090,1.38138106,109520.0,109510.0,0.87265312]
[1751529236142,1.47281799,109520.0,109510.0,0.87265312]
[1751529236355,1.84285884,109520.0,109510.0,0.87265312]
[1751529242502,2.06233884,109520.0,109510.0,0.87265312]
[1751529250391,2.04683884,109520.0,109510.0,0.87265312]
[1751529255522,1.14469282,109520.0,109510.0,0.87265312]
[1751529255729,1.7461235,109520.0,109510.0,0.87265312]
[1751529255940,2.04683884,109520.0,109510.0,0.87265312]
[1751529261197,1.7298235,109520.0,109510.0,0.87265312]
[1751529261627,1.7298235,109520.0,109510.0,0.88795312]
[1751529262825,1.7298235,109520.0,109510.0,0.87265312]
[1751529264206,1.7298235,109520.0,109510.0,0.88835312]
[1751529266870,1.7298235,109520.0,109510.0,0.87265312]
[1751529267912,1.7457235,109520.0,109510.0,0.87265312]
[1751529278439,1.14429282,109520.0,109510.0,0.87265312]
[1751529278863,1.7457235,109520.0,109510.0,0.87265312]
[1751529286248,1.73118265,109520.0,109510.0,0.87265312]
[1751529286452,1.7457235,109520.0,109510.0,0.87265312]
[1751529291987,1.73118265,109520.0,109510.0,0.87265312]
[1751529292435,1.7457235,109520.0,109510.0,0.87265312]
[1751529298469,1.7298235,109520.0,109510.0,0.88825312]
[1751529298643,1.5103435,109520.0,109510.0,0.88825312]
[1751529298855,1.2804235,109520.0,109510.0,0.88825312]
[1751529299056,1.5101435,109520.0,109510.0,0.88825312]
[1751529300272,6.5101435,109520.0,109510.0,0.88825312]
[1751529301439,6.5251435,109520.0,109510.0,0.87265312]
[1751529301753,6.5101435,109520.0,109510.0,0.87265312]
[1751529302516,6.5101435,109520.0,109510.0,0.88865312]
[1751529305904,1.5101435,109520.0,109510.0,0.88865312]
[1751529306107,6.5101435,109520.0,109510.0,0.88865312]
[1751529306463,1.5101435,109520.0,109510.0,0.88865312]
[1751529306894,1.5264435,109520.0,109510.0,0.87265312]
[1751529310162,1.5101435,109520.0,109510.0,0.87265312]
[1751529315008,1.5101435,109520.0,109510.0,0.88825312]
[1751529325872,1.5101435,109520.0,109510.0,0.88739669]
[1751529326540,1.5101435,109520.0,109510.0,0.87179669]
[1751529326948,1.5253435,109520.0,109510.0,0.87179669]
[1751529327159,1.82605884,109520.0,109510.0,0.87179669]
[1751529328301,2.04553884,109520.0,109510.0,0.87179669]
[1751529328732,2.03033884,109520.0,109510.0,0.87179669]
[1751529332982,1.7296235,109520.0,109510.0,0.87179669]
[1751529340777,2.03033884,109520.0,109510.0,0.87179669]
[1751529341440,2.04683884,109520.0,109510.0,0.87179669]
[1751529342179,2.13827577,109520.0,109510.0,0.87179669]
[1751529344306,2.04683884,109520.0,109510.0,0.87179669]
[1751529345052,1.80061884,109520.0,109510.0,0.88799669]
[1751529345240,2.03029884,109520.0,109510.0,0.88799669]
[1751529360434,7.03029884,109520.0,109510.0,0.88799669]
[1751529363209,7.03029884,109520.0,109510.0,0.87179669]
[1751529366610,2.03029884,109520.0,109510.0,0.87179669]
[1751529366859,7.03029884,109520.0,109510.0,0.87179669]
[1751529368891,7.04539884,109520.0,109510.0,0.87179669]
[1751529369837,6.14325282,109520.0,109510.0,0.87179669]
[1751529370023,7.03029884,109520.0,109510.0,0.87179669]
[1751529372422,7.12173577,109520.0,109510.0,0.87179669]
[1751529374053,7.13693577,109520.0,109510.0,0.87179669]
[1751529374223,7.04549884,109520.0,109510.0,0.87179669]
[1751529375340,7.03029884,109520.0,109510.0,0.87179669]
[1751529376851,7.85901418,109520.0,109510.0,0.87179669]
[1751529377080,7.88644757,109520.0,109510.0,0.87179669]
[1751529377561,7.9778845,109520.0,109510.0,0.87079669]
[1751529377762,7.70462916,109520.0,109510.0,0.86779669]
[1751529377972,7.70562916,109520.0,109510.0,0.86879669]
[1751529379133,7.70662916,109520.0,109510.0,0.86879669]
[1751529379661,7.70562916,109520.0,109510.0,0.86879669]
[1751529380069,7.70762916,109520.0,109510.0,0.86879669]
[1751529381240,7.61619223,109520.0,109510.0,0.86879669]
[1751529382607,7.11889223,109520.0,109510.0,0.86879669]
[1751529383223,7.11886676,109520.0,109510.0,0.86879669]
[1751529383653,7.16886676,109520.0,109510.0,0.86879669]
[1751529399811,7.15376676,109520.0,109510.0,0.86879669]
[1751529401667,7.26160369,109520.0,109510.0,0.86879669]
[1751529403381,2.29818154,109520.0,109510.0,0.86879669]
[1751529403580,7.29818154,109520.0,109510.0,0.86879669]
[1751529405874,7.28178154,109520.0,109510.0,0.86879669]
[1751529409460,7.28178154,109520.0,109510.0,0.86669669]
[1751529412105,7.19034461,109520.0,109510.0,0.86669669]
[1751529415469,7.16293669,109520.0,109510.0,0.86669669]
[1751529416437,7.1903678,109520.0,109510.0,0.86669669]
[1751529416839,7.49108314,109520.0,109510.0,0.86669669]
[1751529417043,7.1903678,109520.0,109510.0,0.86669669]
[1751529417458,7.28180473,109520.0,109510.0,0.86669669]
[1751529420726,7.25437362,109520.0,109510.0,0.86669669]
[1751529421127,2.25437362,109520.0,109510.0,0.86669669]
[1751529421359,7.25437362,109520.0,109510.0,0.86669669]
[1751529422678,7.62555574,109520.0,109510.0,0.82096569]
[1751529422891,7.57068896,109520.0,109510.0,0.77523469]
[1751529423129,8.16297073,109520.0,109510.0,0.2916991]
[1751529423350,8.16297073,109520.0,109510.0,0.2459681]
[1751529423563,8.16097073,109520.0,109510.0,0.1545061]
[1751529423773,8.16097073,109520.0,109510.0,0.1077751]
[1751529423985,8.16297073,109520.0,109510.0,0.0630441]
[1751529424166,8.16597073,109520.0,109510.0,0.01655441]
[1751529425223,8.16597073,109520.0,109510.0,1e-08]
[1751529429412,8.15037073,109520.0,109510.0,1e-08]
[1751529429625,8.16577073,109520.0,109510.0,1e-08]
[1751529430593,5.69630398,109510.0,109500.0,0.01546001]
[1751529430792,6.96596386,109510.0,109500.0,0.01546001]
[1751529431300,6.98226386,109510.0,109500.0,0.01546001]
[1751529431676,6.98326386,109510.0,109500.0,0.01646001]
[1751529432892,6.98526386,109510.0,109500.0,0.01746001]
[1751529433676,7.01266691,109510.0,109500.0,0.01746001]
[1751529435141,7.04924476,109510.0,109500.0,0.01746001]
[1751529437742,2.04924476,109510.0,109500.0,0.01746001]
[1751529437950,7.04924476,109510.0,109500.0,0.01746001]
[1751529439068,7.04924328,109510.0,109500.0,0.01746001]
[1751529442252,7.01266543,109510.0,109500.0,0.01746001]
[1751529442455,7.04924328,109510.0,109500.0,0.01746001]
[1751529444811,7.02184171,109510.0,109500.0,0.01746001]
[1751529445026,7.0492509,109510.0,109500.0,0.01746001]
[1751529448515,6.14710488,109510.0,109500.0,0.01746001]
[1751529448734,2.0492509,109510.0,109500.0,0.01746001]
[1751529448939,7.0492509,109510.0,109500.0,0.01746001]
[1751529449383,7.0496509,109510.0,109500.0,0.01746001]
[1751529452448,7.06716171,109510.0,109500.0,0.01746001]
[1751529453490,7.0669856,109510.0,109500.0,0.01746001]
[1751529463414,7.2865056,109510.0,109500.0,0.01746001]
[1751529466917,2.2865056,109510.0,109500.0,0.01746001]
[1751529467124,7.2865056,109510.0,109500.0,0.01746001]
[1751529482284,7.34137238,109510.0,109500.0,0.01746001]
[1751529482489,7.2865056,109510.0,109500.0,0.01746001]
[1751529483103,7.3031056,109510.0,109500.0,0.00216001]
[1751529484367,7.2865056,109510.0,109500.0,0.00216001]
[1751529484571,7.3023056,109510.0,109500.0,0.00216001]
[1751529489332,7.2865056,109510.0,109500.0,0.00216001]
[1751529493700,2.2865056,109510.0,109500.0,0.00216001]
[1751529494099,7.2865056,109510.0,109500.0,0.00216001]
[1751529494747,7.2865056,109510.0,109500.0,0.01856001]
[1751529499739,7.2865056,109510.0,109500.0,0.03366001]
[1751529499740,5.88872265,109510.0,109500.0,0.03366001]
[1751529499947,6.63817548,109510.0,109500.0,0.03366001]
[1751529509919,6.63817548,109510.0,109500.0,0.01856001]
[1751529511023,1.63817548,109510.0,109500.0,0.01856001]
[1751529511238,6.63817548,109510.0,109500.0,0.01856001]
[1751529511451,6.72961241,109510.0,109500.0,0.01856001]
[1751529513190,6.63817548,109510.0,109500.0,0.01856001]
[1751529513542,6.63817548,109510.0,109500.0,0.03436001]
[1751529517992,6.63817548,109510.0,109500.0,0.01856001]
[1751529528423,1.67475333,109510.0,109500.0,0.01856001]
[1751529528828,6.67475333,109510.0,109500.0,0.01856001]
[1751529529031,6.75396232,109510.0,109500.0,0.01856001]
[1751529533727,6.71738447,109510.0,109500.0,0.01856001]
[1751529533934,6.75396232,109510.0,109500.0,0.01856001]
[1751529535143,7.07087766,109510.0,109500.0,0.00216001]
[1751529538712,7.03429981,109510.0,109500.0,0.00216001]
[1751529540751,7.07087419,109510.0,109500.0,0.00216001]
[1751529542894,2.07087419,109510.0,109500.0,0.00216001]
[1751529543342,7.07087419,109510.0,109500.0,0.00216001]
[1751529545746,7.05467419,109510.0,109500.0,0.00216001]
[1751529545946,6.9754652,109510.0,109500.0,0.00216001]
[1751529548383,6.9754652,109510.0,109500.0,0.01786001]
[1751529548613,6.93889082,109510.0,109500.0,0.01786001]
[1751529551607,6.97546017,109510.0,109500.0,0.01786001]
[1751529554293,1.97546017,109510.0,109500.0,0.01786001]
[1751529554530,7.0668971,109510.0,109500.0,0.01500261]
[1751529558690,7.03032775,109510.0,109500.0,0.01500261]
[1751529560705,7.06690756,109510.0,109500.0,0.01500261]
[1751529567658,6.97547063,109510.0,109500.0,0.01500261]
[1751529569823,6.93889082,109510.0,109500.0,0.01500261]
[1751529570899,6.97547861,109510.0,109500.0,0.01500261]